Workbook

Sheet 7-11 лет
A1: Школа | B1: МБОУ "Мысовская СОШ" | E1: Отд./корп | I1: День | J1: 1.
A3: Прием пищи | B3: Раздел | C3: № рец. | D3: Блюдо | E3: Выход, г | F3: Цена | G3: Калорийность | H3: Белки | I3: Жиры | J3: Углеводы
A4: Завтрак | B4: закуска | C4: №106/2013 | D4: Овощи натуральные | E4: 60 | G4: 8.46 | H4: 0.48 | I4: 0.60 | J4: 1.50
A5: 7-11 лет | B5: 2 блюдо | C5: №410/2013 | D5: Фрикаделька из кур | E5: 90 | G5: 158.94 | H5: 17.94 | I5: 6.74 | J5: 6.63
B6: гарнир | C6: №202/2018 | D6: Каша гречневая | E6: 150 | G6: 288.28 | H6: 10.40 | I6: 6.71 | J6: 46.57
B7: гор. напиок | C7: №457/2018 | D7: Чай с сахаром | E7: 200 | G7: 39.92 | H7: 9.98
B8: хлеб бел. | C8: №108/2013 | D8: Хлеб пшеничный | E8: 30 | G8: 62.38 | H8: 2.28 | I8: 0.24 | J8: 10.35
E10: 530 | F10: 75.50 | G10: 548.28 | H10: 31.10 | I10: 13.75 | J10: 75.03
A11: Завтрак 2 | B11: мучные изделия | C11: №574/2013 | D11: булочка "школьная" | E11: 60 | G11: 171 | H11: 5 | I11: 2 | J11: 34
A12: ОВЗ | B12: напиток | C12: №518/2013 | D12: сок | E12: 200 | G12: 92 | H12: 1 | I12: 0 | J12: 0
E13: 260 | F13: 26.00 | G13: =SUM(G11:G12) -> 263 | H13: =SUM(H11:H12) -> 6 | I13: 2 | J13: 34
A14: Обед | B14: закуска | C14: №4/2013 | D14: Салат из белокочанной капусты с морковью | E14: 60 | G14: 57.20 | H14: 0.92 | I14: 3.65 | J14: 5.12
A15: 7-11 лет | B15: 1 блюдо | C15: №144/2013 | D15: Суп гороховый | E15: 200 | G15: 119.02 | H15: 4.60 | I15: 3.45 | J15: 17.39
B16: 2 блюдо | C16: №372/2013 | D16: Голубцы ленивые | E16: 90 | G16: 136.09 | H16: 8.10 | I16: 9.33 | J16: 4.94
B17: гарнир | C17: №256/2018 | D17: Макароные изделия отварные | E17: 150 | G17: 222.62 | H17: 6.23 | I17: 6.56 | J17: 34.68
B18: напиток | C18: №494/2018 | D18: Компот из кураги | E18: 200 | G18: 85.42 | H18: 1.04 | I18: 0.06 | J18: 20.18
B19: хлеб бел. | C19: №108/2013 | D19: Хлеб пшеничный | E19: 30 | G19: 62.38 | H19: 2.28 | I19: 0.24 | J19: 10.35
B20: хлеб черн. | C20: №109/2013 | D20: Хлеб ржаной | E20: 30 | G20: 62.34 | H20: 1.47 | I20: 0.30 | J20: 13.44
E22: 760 | F22: 75.50 | G22: 735 | H22: 25 | I22: 24 | J22: 106

Sheet 12-18 лет
A1: Школа | B1: МБОУ "Мысовская СОШ" | E1: Отд./корп | I1: День | J1: 1.
A3: Прием пищи | B3: Раздел | C3: № рец. | D3: Блюдо | E3: Выход, г | F3: Цена | G3: Калорийность | H3: Белки | I3: Жиры | J3: Углеводы
A4: Завтрак | B4: закуска | C4: №106/2013 | D4: Овощи натуральные | E4: 60 | G4: 8.46 | H4: 0.48 | I4: 0.60 | J4: 1.50
A5: 12-18 лет | B5: 2 блюдо | C5: №410/2013 | D5: Фрикаделька из кур | E5: 100 | G5: =158.94/90*100 -> 176.60 | H5: =17.94/90*100 -> 19.93 | I5: =6.74/90*100 -> 7.49 | J5: =6.63/90*100 -> 7.37
B6: гарнир | C6: №202/2018 | D6: Каша гречневая | E6: 180 | G6: =288.28/150*180 -> 345.94 | H6: =10.4/150*180 -> 12.48 | I6: =6.71/150*180 -> 8.05 | J6: =46.57/150*180 -> 55.88
B7: гор. напиок | C7: №457/2018 | D7: Чай с сахаром | E7: 200 | G7: 39.92 | H7: 9.98
B8: хлеб бел. | C8: №108/2013 | D8: Хлеб пшеничный | E8: 30 | G8: 62.38 | H8: 2.28 | I8: 0.24 | J8: 10.35
E10: =SUM(E4:E9) -> 570 | F10: 84.66 | G10: =SUM(G4:G8) -> 633.30 | H10: =SUM(H4:H9) -> 45.15 | I10: =SUM(I4:I9) -> 16.38 | J10: =SUM(J4:J9) -> 75.10
A11: Обед | B11: закуска | C11: №4/2013 | D11: Салат из белокочанной капусты с морковью | E11: 60 | G11: 57.20 | H11: 0.92 | I11: 3.65 | J11: 5.12
A12: 12-18 лет | B12: 1 блюдо | C12: №144/2013 | D12: Суп гороховый | E12: 250 | G12: =119.02/200*250 -> 148.78 | H12: =4.6/200*250 -> 5.75 | I12: =3.45/200*250 -> 4.31 | J12: =17.39/200*250 -> 21.74
B13: 2 блюдо | C13: №372/2013 | D13: Голубцы ленивые | E13: 100 | G13: =136.09/90*100 -> 151.21 | H13: =8.1/90*100 -> 9.00 | I13: =9.33/90*100 -> 10.37 | J13: =4.944/90*100 -> 5.49
B14: гарнир | C14: №256/2018 | D14: Макароные изделия отварные | E14: 180 | G14: =222.62/150*180 -> 267.14 | H14: =6.23/150*180 -> 7.48 | I14: =6.56/150*180 -> 7.87 | J14: =34.68/150*180 -> 41.62
B15: напиток | C15: №494/2018 | D15: Компот из кураги | E15: 200 | G15: 85.42 | H15: 1.04 | I15: 0.06 | J15: 20.18
B16: хлеб бел. | C16: №108/2013 | D16: Хлеб пшеничный | E16: 30 | G16: 62.38 | H16: 2.28 | I16: 0.24 | J16: 10.35
B17: хлеб черн. | C17: №109/2013 | D17: Хлеб ржаной | E17: 30 | G17: 62.34 | H17: 1.47 | I17: 0.30 | J17: 13.44
E19: =SUM(E11:E18) -> 850 | F19: 84.66 | G19: =SUM(G11:G18) -> 834 | H19: =SUM(H11:H18) -> 28 | I19: 27 | J19: 118
